[Event "GER-chW Blitz 2019"]
[Site "Magdeburg"]
[Date "2019.05.25"]
[Round "8.8"]
[White "Osmanodja, Filiz"]
[Black "Fuchs, Judith"]
[Result "1/2-1/2"]
[ECO "B13"]
[WhiteElo "2260"]
[BlackElo "2218"]
[Annotator "NA"]
[PlyCount "101"]
[EventDate "2019.05.25"]
[EventType "tourn"]
[EventCountry "GER"]
[SourceTitle "playchess.com"]
[Source "ChessBase"]
[SourceQuality "1"]
[TimeControl "180+2"]

1. e4 {[%emt 0:00:00]} c6 {[%emt 0:00:00]} 2. d4 {[%emt 0:00:01]} d5 {[%emt 0:00:00]} 3. exd5 {[%emt 0:00:01]} cxd5 {[%emt 0:00:00]} 4. Bd3 {[%emt 0:00:01]} Nc6 {[%emt 0:00:01]} 5. c3 {[%emt 0:00:01]} Qc7 {[%emt 0:00:01]} 6. h3 {[%emt 0:00:01]} Nf6 {[%emt 0:00:04]} 7. Ne2 {[%emt 0:00:05]} e5 {[%emt 0:00:19]} 8. dxe5 {[%emt 0:00:14]} Nxe5 {[%emt 0:00:01]} 9. Bb5+ {[%emt 0:00:01]} Bd7 {[%emt 0:00:03]} 10. Bxd7+ {[%emt 0:00:06]} Qxd7 {[%emt 0:00:05]} 11. Bf4 {[%emt 0:00:15]} Ng6 {[%emt 0:00:05]} 12. Be3 {[%emt 0:00:09]} Bd6 {[%emt 0:00:04]} 13. O-O {[%emt 0:00:19]} O-O {[%emt 0:00:01]} 14. Nd2 {[%emt 0:00:10]} Rfe8 {[%emt 0:00:02]} 15. Nf3 {[%emt 0:00:18]} Bc7 {[%emt 0:00:20]} 16. Ned4 {[%emt 0:00:25]} Ne4 {[%emt 0:00:11]} 17. Re1 {[%emt 0:00:11]} a6 {[%emt 0:00:02]} 18. Nd2 {[%emt 0:00:35]} Qd6 {[%emt 0:00:09]} 19. N4f3 {[%emt 0:00:15]} Rad8 {[%emt 0:00:30]} 20. Nxe4 {[%emt 0:00:12]} dxe4 {[%emt 0:00:01]} 21. Qxd6 {[%emt 0:00:01]} Rxd6 {[%emt 0:00:03]} 22. Nd4 {[%emt 0:00:05]} Ne5 {[%emt 0:00:03]} 23. Bf4 {[%emt 0:00:09]} Rb6 {[%emt 0:00:40]} 24. Rxe4 {[%emt 0:00:04]} f6 {[%emt 0:00:11]} 25. Bxe5 {[%emt 0:00:03]} fxe5 {[%emt 0:00:04]} 26. Nb3 {[%emt 0:00:01]} Rd8 {[%emt 0:00:01]} 27. Kf1 {[%emt 0:00:05]} Rf6 {[%emt 0:00:07]} 28. Ke2 {[%emt 0:00:03]} Bb6 {[%emt 0:00:01]} 29. f3 {[%emt 0:00:00]} Bc7 {[%emt 0:00:01]} 30. Rd1 {[%emt 0:00:02]} Rxd1 {[%emt 0:00:03]} 31. Kxd1 {[%emt 0:00:01]} Rd6+ {[%emt 0:00:01]} 32. Ke2 {[%emt 0:00:01]} Rg6 {[%emt 0:00:00]} 33. Rg4 {[%emt 0:00:04]} Rb6 {[%emt 0:00:04]} 34. Re4 {[%emt 0:00:05]} Kf7 {[%emt 0:00:01]} 35. Ke1 {[%emt 0:00:01]} Kf6 {[%emt 0:00:01]} 36. Ke2 {[%emt 0:00:01]} a5 {[%emt 0:00:01]} 37. Nd2 {[%emt 0:00:04]} Rxb2 38. a4 {[%emt 0:00:02]} Rb6 {[%emt 0:00:06]} 39. Rc4 {[%emt 0:00:01]} Bd8 {[%emt 0:00:02]} 40. Ne4+ {[%emt 0:00:01]} Kf7 {[%emt 0:00:02]} 41. Rc8 {[%emt 0:00:01]} Ke7 {[%emt 0:00:02]} 42. Nc5 {[%emt 0:00:02]} Rb2+ {[%emt 0:00:05]} 43. Ke3 {[%emt 0:00:02]} b6 {[%emt 0:00:01]} 44. Nb7 {[%emt 0:00:01]} Rxg2 45. Rxd8 {[%emt 0:00:03]} Rc2 {[%emt 0:00:05]} 46. Rc8 {[%emt 0:00:01]} Kd7 {[%emt 0:00:02]} 47. Rc4 {[%emt 0:00:03]} Rh2 {[%emt 0:00:02]} 48. h4 {[%emt 0:00:01]} g6 {[%emt 0:00:02]} 49. Kd3 {[%emt 0:00:04]} Rf2 {[%emt 0:00:01]} 50. Ke3 {[%emt 0:00:01]} Rh2 {[%emt 0:00:00]} 51. Kd3 {[%emt 0:00:04]} 1/2-1/2

[Event "GER-chW Blitz 2019"]
[Site "Magdeburg"]
[Date "2019.05.25"]
[Round "8.9"]
[White "Michna, Marta"]
[Black "Kotyk, Valeriya"]
[Result "1-0"]
[ECO "A06"]
[WhiteElo "2355"]
[BlackElo "1739"]
[Annotator "NA"]
[PlyCount "85"]
[EventDate "2019.05.25"]
[EventType "tourn"]
[EventCountry "GER"]
[SourceTitle "playchess.com"]
[Source "ChessBase"]
[SourceQuality "1"]
[TimeControl "180+2"]

1. Nf3 {[%emt 0:00:00]} d5 {[%emt 0:00:01]} 2. g3 {[%emt 0:00:00]} g6 {[%emt 0:00:07]} 3. Bg2 {[%emt 0:00:00]} Bg7 {[%emt 0:00:01]} 4. O-O {[%emt 0:00:01]} c6 {[%emt 0:00:03]} 5. d3 {[%emt 0:00:01]} e6 {[%emt 0:00:07]} 6. Nbd2 {[%emt 0:00:02]} Ne7 {[%emt 0:00:02]} 7. e4 {[%emt 0:00:01]} dxe4 {[%emt 0:00:04]} 8. dxe4 {[%emt 0:00:01]} Nd7 {[%emt 0:00:02]} 9. a4 {[%emt 0:00:07]} O-O {[%emt 0:00:11]} 10. Nc4 {[%emt 0:00:16]} b5 {[%emt 0:00:37]} 11. axb5 {[%emt 0:00:04]} cxb5 {[%emt 0:00:01]} 12. Nd6 {[%emt 0:00:03]} Qc7 {[%emt 0:00:04]} 13. Nxb5 {[%emt 0:00:09]} Qb6 {[%emt 0:00:04]} 14. Na3 {[%emt 0:00:07]} Rd8 {[%emt 0:00:11]} 15. Nc4 {[%emt 0:00:21]} Qc5 {[%emt 0:00:02]} 16. Qe2 {[%emt 0:00:05]} Bb7 {[%emt 0:00:08]} 17. Be3 {[%emt 0:00:11]} Qc7 {[%emt 0:00:02]} 18. Bxa7 {[%emt 0:00:07]} Rdc8 {[%emt 0:00:14]} 19. Nfd2 {[%emt 0:00:06]} Nc6 {[%emt 0:00:15]} 20. Be3 {[%emt 0:00:04]} Nce5 {[%emt 0:00:16]} 21. Nxe5 {[%emt 0:00:07]} Qxe5 {[%emt 0:00:07]} 22. c3 {[%emt 0:00:04]} Nf6 {[%emt 0:00:10]} 23. Bd4 {[%emt 0:00:03]} Qc7 {[%emt 0:00:04]} 24. h3 {[%emt 0:00:14]} Rcb8 {[%emt 0:00:08]} 25. Kh2 {[%emt 0:00:25]} Bc6 {[%emt 0:00:04]} 26. Rxa8 {[%emt 0:00:02]} Rxa8 {[%emt 0:00:01]} 27. Qc4 {[%emt 0:00:11]} Qb7 {[%emt 0:00:06]} 28. Qb3 {[%emt 0:00:16]} Qxb3 {[%emt 0:00:05]} 29. Nxb3 {[%emt 0:00:00]} Bxe4 {[%emt 0:00:21]} 30. Bxf6 {[%emt 0:00:03]} Bxg2 {[%emt 0:00:02]} 31. Kxg2 {[%emt 0:00:01]} Bxf6 {[%emt 0:00:01]} 32. Nc5 {[%emt 0:00:05]} Rc8 {[%emt 0:00:05]} 33. Ne4 {[%emt 0:00:05]} Bg7 {[%emt 0:00:02]} 34. Rd1 {[%emt 0:00:02]} Kf8 {[%emt 0:00:05]} 35. Rd7 {[%emt 0:00:05]} Ke8 {[%emt 0:00:01]} 36. Rxf7 {[%emt 0:00:05]} Kxf7 {[%emt 0:00:05]} 37. Nd6+ {[%emt 0:00:00]} Kf6 {[%emt 0:00:02]} 38. Nxc8 {[%emt 0:00:02]} Ke5 {[%emt 0:00:01]} 39. b3 {[%emt 0:00:19]} Ke4 {[%emt 0:00:04]} 40. c4 {[%emt 0:00:07]} Kd4 {[%emt 0:00:03]} 41. Nd6 {[%emt 0:00:08]} Kc3 {[%emt 0:00:01]} 42. c5 {[%emt 0:00:02]} Bf8 {[%emt 0:00:09]} 43. Nb7 {[%emt 0:00:01]} 1-0

[Event "GER-chW Blitz 2019"]
[Site "Magdeburg"]
[Date "2019.05.25"]
[Round "8.10"]
[White "Muetsch, Annmarie"]
[Black "Silz, Elisa"]
[Result "1-0"]
[ECO "B09"]
[WhiteElo "2266"]
[BlackElo "1977"]
[Annotator "NA"]
[PlyCount "89"]
[EventDate "2019.05.25"]
[EventType "tourn"]
[EventCountry "GER"]
[SourceTitle "playchess.com"]
[Source "ChessBase"]
[SourceQuality "1"]
[TimeControl "180+2"]

1. e4 {[%emt 0:00:00]} g6 {[%emt 0:00:00]} 2. d4 {[%emt 0:00:00]} Bg7 {[%emt 0:00:00]} 3. Nc3 {[%emt 0:00:01]} d6 {[%emt 0:00:00]} 4. f4 {[%emt 0:00:01]} Nf6 {[%emt 0:00:00]} 5. Nf3 {[%emt 0:00:01]} O-O {[%emt 0:00:02]} 6. Bd3 {[%emt 0:00:03]} c5 {[%emt 0:00:05]} 7. dxc5 {[%emt 0:00:12]} dxc5 {[%emt 0:00:01]} 8. O-O {[%emt 0:00:02]} Nc6 {[%emt 0:00:10]} 9. e5 {[%emt 0:00:05]} Nd5 {[%emt 0:00:05]} 10. Ne4 {[%emt 0:00:15]} b6 {[%emt 0:00:06]} 11. c3 {[%emt 0:00:04]} h6 {[%emt 0:00:10]} 12. Qe2 {[%emt 0:00:02]} Bb7 {[%emt 0:00:08]} 13. Bd2 {[%emt 0:00:10]} Rc8 {[%emt 0:00:10]} 14. Rad1 {[%emt 0:00:03]} Qc7 {[%emt 0:00:03]} 15. Ng3 {[%emt 0:00:11]} e6 {[%emt 0:00:13]} 16. Ne4 {[%emt 0:00:03]} Nce7 {[%emt 0:00:05]} 17. Nd6 {[%emt 0:00:05]} Rcd8 {[%emt 0:00:01]} 18. a3 {[%emt 0:00:11]} Nf5 {[%emt 0:00:08]} 19. Nxb7 {[%emt 0:00:17]} Qxb7 {[%emt 0:00:01]} 20. Be4 {[%emt 0:00:04]} Qe7 {[%emt 0:00:09]} 21. Qf2 {[%emt 0:00:15]} Rd7 {[%emt 0:00:11]} 22. g4 {[%emt 0:00:05]} Nd6 {[%emt 0:00:17]} 23. exd6 {[%emt 0:00:02]} Qxd6 {[%emt 0:00:01]} 24. Bc1 {[%emt 0:00:12]} Qc7 {[%emt 0:00:17]} 25. Bxd5 {[%emt 0:00:04]} exd5 {[%emt 0:00:01]} 26. Rfe1 {[%emt 0:00:05]} Rfd8 {[%emt 0:00:05]} 27. Ne5 {[%emt 0:00:02]} Re7 {[%emt 0:00:09]} 28. Nf3 {[%emt 0:00:10]} Red7 {[%emt 0:00:02]} 29. f5 {[%emt 0:00:09]} gxf5 {[%emt 0:00:06]} 30. gxf5 {[%emt 0:00:01]} Kh8 {[%emt 0:00:07]} 31. Qh4 {[%emt 0:00:04]} Qd6 {[%emt 0:00:04]} 32. Bf4 {[%emt 0:00:04]} Qc6 {[%emt 0:00:10]} 33. Ne5 {[%emt 0:00:08]} Bxe5 {[%emt 0:00:08]} 34. Bxe5+ {[%emt 0:00:01]} Kh7 {[%emt 0:00:03]} 35. Bg3 {[%emt 0:00:22]} d4 {[%emt 0:00:06]} 36. c4 {[%emt 0:00:06]} b5 {[%emt 0:00:04]} 37. cxb5 {[%emt 0:00:04]} Qxb5 {[%emt 0:00:03]} 38. Qe4 {[%emt 0:00:06]} d3 {[%emt 0:00:15]} 39. f6+ {[%emt 0:00:02]} Kh8 {[%emt 0:00:01]} 40. Qf4 {[%emt 0:00:04]} Kh7 {[%emt 0:00:20]} 41. Qf5+ {[%emt 0:00:01]} Kh8 {[%emt 0:00:02]} 42. Qh5 {[%emt 0:00:01]} Kh7 {[%emt 0:00:01]} 43. Re7 {[%emt 0:00:10]} Qc4 {[%emt 0:00:12]} 44. Qf5+ {[%emt 0:00:05]} Kh8 {[%emt 0:00:02]} 45. Rxd7 {[%emt 0:00:02]} 1-0

[Event "GER-chW Blitz 2019"]
[Site "Magdeburg"]
[Date "2019.05.25"]
[Round "8.11"]
[White "Siegl, Melina"]
[Black "Rath, Alina"]
[Result "0-1"]
[ECO "B30"]
[WhiteElo "2029"]
[BlackElo "2042"]
[Annotator "NA"]
[PlyCount "46"]
[EventDate "2019.05.25"]
[EventType "tourn"]
[EventCountry "GER"]
[SourceTitle "playchess.com"]
[Source "ChessBase"]
[SourceQuality "1"]
[TimeControl "180+2"]

1. e4 {[%emt 0:00:00]} c5 {[%emt 0:00:00]} 2. Nf3 {[%emt 0:00:01]} Nc6 {[%emt 0:00:00]} 3. d3 {[%emt 0:00:01]} g6 {[%emt 0:00:01]} 4. g3 {[%emt 0:00:01]} Bg7 {[%emt 0:00:01]} 5. Bg2 {[%emt 0:00:01]} e5 {[%emt 0:00:01]} 6. c3 {[%emt 0:00:02]} Nge7 {[%emt 0:00:01]} 7. O-O {[%emt 0:00:03]} O-O {[%emt 0:00:01]} 8. Be3 {[%emt 0:00:02]} d6 {[%emt 0:00:01]} 9. Qd2 {[%emt 0:00:03]} f5 {[%emt 0:00:01]} 10. Bh6 {[%emt 0:00:08]} f4 {[%emt 0:00:01]} 11. Bxg7 {[%emt 0:00:03]} Kxg7 {[%emt 0:00:01]} 12. d4 {[%emt 0:00:12]} h6 {[%emt 0:00:14]} 13. Na3 {[%emt 0:00:04]} g5 {[%emt 0:00:07]} 14. h3 {[%emt 0:00:40]} Ng6 {[%emt 0:00:07]} 15. Kh2 {[%emt 0:00:09]} Qe7 {[%emt 0:00:02]} 16. Rfe1 {[%emt 0:00:15]} h5 {[%emt 0:00:10]} 17. Ng1 {[%emt 0:00:22]} cxd4 {[%emt 0:00:12]} 18. cxd4 {[%emt 0:00:11]} Nxd4 {[%emt 0:00:03]} 19. Qd1 {[%emt 0:00:19]} g4 {[%emt 0:00:10]} 20. h4 {[%emt 0:00:09]} Nxh4 {[%emt 0:00:15]} 21. gxf4 {[%emt 0:00:22]} Rxf4 {[%emt 0:00:13]} 22. Rf1 {[%emt 0:00:18]} Nhf3+ {[%emt 0:00:13]} 23. Bxf3 {[%emt 0:00:05]} Qh4+ {[%emt 0:00:11]} 0-1

[Event "GER-chW Blitz 2019"]
[Site "Magdeburg"]
[Date "2019.05.25"]
[Round "8.12"]
[White "Hofmann, Karina"]
[Black "Birkholz, Olga"]
[Result "0-1"]
[ECO "A02"]
[WhiteElo "1700"]
[BlackElo "2031"]
[Annotator "NA"]
[PlyCount "58"]
[EventDate "2019.05.25"]
[EventType "tourn"]
[EventCountry "GER"]
[SourceTitle "playchess.com"]
[Source "ChessBase"]
[SourceQuality "1"]
[TimeControl "180+2"]

1. f4 {[%emt 0:00:00]} d6 {[%emt 0:00:00]} 2. Nf3 {[%emt 0:00:01]} g6 {[%emt 0:00:01]} 3. e3 {[%emt 0:00:01]} Bg7 {[%emt 0:00:01]} 4. Nc3 {[%emt 0:00:01]} Nc6 {[%emt 0:00:02]} 5. Bb5 {[%emt 0:00:01]} Bd7 {[%emt 0:00:02]} 6. b3 {[%emt 0:00:01]} a6 {[%emt 0:00:01]} 7. Bxc6 {[%emt 0:00:01]} Bxc6 {[%emt 0:00:02]} 8. Bb2 {[%emt 0:00:01]} Nf6 {[%emt 0:00:03]} 9. Qe2 {[%emt 0:00:02]} Qd7 {[%emt 0:00:04]} 10. h3 {[%emt 0:00:01]} h5 {[%emt 0:00:06]} 11. O-O-O {[%emt 0:00:03]} O-O-O {[%emt 0:00:05]} 12. Nd4 {[%emt 0:00:06]} e5 {[%emt 0:00:07]} 13. fxe5 {[%emt 0:00:08]} dxe5 {[%emt 0:00:01]} 14. Nxc6 {[%emt 0:00:08]} Qxc6 {[%emt 0:00:02]} 15. Rhg1 {[%emt 0:00:10]} Kb8 {[%emt 0:00:01]} 16. Qf3 {[%emt 0:00:07]} Qe6 {[%emt 0:00:30]} 17. Rdf1 {[%emt 0:00:02]} Rhf8 {[%emt 0:00:14]} 18. Ne4 {[%emt 0:00:02]} Nxe4 19. Qxe4 {[%emt 0:00:01]} f5 {[%emt 0:00:07]} 20. Qa4 {[%emt 0:00:10]} Qd6 {[%emt 0:00:05]} 21. d3 {[%emt 0:00:11]} Bh6 {[%emt 0:00:07]} 22. Re1 {[%emt 0:00:06]} Qc5 {[%emt 0:00:04]} 23. d4 exd4 {[%emt 0:00:04]} 24. Bxd4 {[%emt 0:00:09]} Rxd4 {[%emt 0:00:03]} 25. c4 {[%emt 0:00:14]} Rd3 {[%emt 0:00:06]} 26. Kc2 {[%emt 0:00:05]} Rxe3 {[%emt 0:00:04]} 27. Rd1 {[%emt 0:00:06]} Re2+ {[%emt 0:00:04]} 28. Kb1 {[%emt 0:00:02]} Qe5 {[%emt 0:00:09]} 29. Qd7 {[%emt 0:00:08]} Qb2# {[%emt 0:00:45]} 0-1

[Event "GER-chW Blitz 2019"]
[Site "Magdeburg"]
[Date "2019.05.25"]
[Round "9.1"]
[White "Birkholz, Olga"]
[Black "Roesler, Hannah Clara Hed"]
[Result "1-0"]
[ECO "B20"]
[WhiteElo "2031"]
[BlackElo "1619"]
[Annotator "NA"]
[PlyCount "56"]
[EventDate "2019.05.25"]
[EventType "tourn"]
[EventCountry "GER"]
[SourceTitle "playchess.com"]
[Source "ChessBase"]
[SourceQuality "1"]
[TimeControl "180+2"]

1. e4 {[%emt 0:00:00]} c5 {[%emt 0:00:00]} 2. b3 {[%emt 0:00:00]} g6 {[%emt 0:00:11]} 3. Bb2 {[%emt 0:00:01]} Nf6 {[%emt 0:00:13]} 4. Nf3 {[%emt 0:00:02]} Bg7 {[%emt 0:00:06]} 5. Bc4 {[%emt 0:00:08]} O-O {[%emt 0:00:16]} 6. Qe2 {[%emt 0:00:01]} a6 {[%emt 0:00:15]} 7. a4 {[%emt 0:00:03]} Nc6 {[%emt 0:00:05]} 8. e5 {[%emt 0:00:18]} Ng4 {[%emt 0:00:15]} 9. h3 {[%emt 0:00:07]} Nh6 {[%emt 0:00:04]} 10. g4 {[%emt 0:00:11]} Kh8 {[%emt 0:00:11]} 11. Na3 {[%emt 0:00:12]} d5 {[%emt 0:00:30]} 12. Bd3 {[%emt 0:00:25]} f5 {[%emt 0:00:17]} 13. g5 {[%emt 0:00:15]} Nf7 {[%emt 0:00:08]} 14. O-O-O {[%emt 0:00:12]} Nfxe5 {[%emt 0:00:06]} 15. Nxe5 {[%emt 0:00:02]} Nb4 {[%emt 0:00:15]} 16. Kb1 {[%emt 0:00:09]} d4 {[%emt 0:00:13]} 17. Bc4 {[%emt 0:00:09]} e6 {[%emt 0:00:12]} 18. h4 {[%emt 0:00:03]} Qc7 {[%emt 0:00:06]} 19. Nf3 {[%emt 0:00:05]} b5 {[%emt 0:00:06]} 20. axb5 {[%emt 0:00:03]} axb5 {[%emt 0:00:01]} 21. Bxb5 {[%emt 0:00:07]} Bb7 {[%emt 0:00:03]} 22. h5 {[%emt 0:00:15]} e5 {[%emt 0:00:04]} 23. hxg6 {[%emt 0:00:03]} e4 {[%emt 0:00:02]} 24. Rxh7+ {[%emt 0:00:09]} Kg8 {[%emt 0:00:00]} 25. Bc4+ {[%emt 0:00:12]} Nd5 {[%emt 0:00:05]} 26. Rdh1 {[%emt 0:00:13]} Ra5 27. Nh4 Rfa8 28. Nxf5 Be5 1-0

[Event "GER-chW Blitz 2019"]
[Site "Magdeburg"]
[Date "2019.05.25"]
[Round "9.2"]
[White "Rath, Alina"]
[Black "Hofmann, Karina"]
[Result "1-0"]
[ECO "A10"]
[WhiteElo "2042"]
[BlackElo "1700"]
[Annotator "NA"]
[PlyCount "146"]
[EventDate "2019.05.25"]
[EventType "tourn"]
[EventCountry "GER"]
[SourceTitle "playchess.com"]
[Source "ChessBase"]
[SourceQuality "1"]
[TimeControl "180+2"]

1. c4 {[%emt 0:00:00]} b6 {[%emt 0:00:00]} 2. Nc3 {[%emt 0:00:01]} Bb7 {[%emt 0:00:00]} 3. e4 {[%emt 0:00:02]} e6 {[%emt 0:00:00]} 4. g3 {[%emt 0:00:02]} Bb4 {[%emt 0:00:01]} 5. Nge2 {[%emt 0:00:02]} Ne7 {[%emt 0:00:02]} 6. Bg2 {[%emt 0:00:01]} O-O {[%emt 0:00:08]} 7. O-O {[%emt 0:00:02]} d5 {[%emt 0:00:04]} 8. cxd5 {[%emt 0:00:15]} exd5 {[%emt 0:00:02]} 9. d4 {[%emt 0:00:38]} dxe4 {[%emt 0:00:06]} 10. Nxe4 {[%emt 0:00:07]} Nd5 {[%emt 0:00:35]} 11. a3 {[%emt 0:00:05]} Be7 {[%emt 0:00:03]} 12. b4 {[%emt 0:00:08]} c6 {[%emt 0:00:07]} 13. Bb2 {[%emt 0:00:05]} Nd7 {[%emt 0:00:01]} 14. Rc1 {[%emt 0:00:08]} Rc8 {[%emt 0:00:02]} 15. Qd2 {[%emt 0:00:12]} N7f6 {[%emt 0:00:02]} 16. Rcd1 {[%emt 0:00:23]} Nxe4 {[%emt 0:00:12]} 17. Bxe4 {[%emt 0:00:02]} Bg5 {[%emt 0:00:03]} 18. Qc2 {[%emt 0:00:10]} g6 {[%emt 0:00:04]} 19. f4 {[%emt 0:00:07]} Bf6 {[%emt 0:00:01]} 20. Bc1 {[%emt 0:00:19]} Re8 {[%emt 0:00:05]} 21. Bf3 {[%emt 0:00:02]} Ne3 {[%emt 0:00:03]} 22. Bxe3 {[%emt 0:00:01]} Rxe3 {[%emt 0:00:01]} 23. Kf2 {[%emt 0:00:05]} Rxa3 {[%emt 0:00:03]} 24. Kg2 {[%emt 0:00:12]} Qe7 {[%emt 0:00:03]} 25. Qb2 {[%emt 0:00:10]} Re3 {[%emt 0:00:16]} 26. Nc1 {[%emt 0:00:01]} c5 {[%emt 0:00:24]} 27. bxc5 {[%emt 0:00:09]} Bxf3+ {[%emt 0:00:06]} 28. Rxf3 {[%emt 0:00:01]} Qe4 {[%emt 0:00:09]} 29. Rdf1 {[%emt 0:00:08]} Bxd4 {[%emt 0:00:06]} 30. Qa2 {[%emt 0:00:05]} bxc5 {[%emt 0:00:11]} 31. Qxa7 {[%emt 0:00:03]} Ra8 {[%emt 0:00:07]} 32. Qc7 {[%emt 0:00:02]} Ra1 {[%emt 0:00:11]} 33. Qd8+ {[%emt 0:00:14]} Kg7 {[%emt 0:00:02]} 34. f5 {[%emt 0:00:01]} Rxf3 {[%emt 0:00:19]} 35. Rxf3 {[%emt 0:00:02]} Rxc1 {[%emt 0:00:08]} 36. f6+ {[%emt 0:00:01]} Bxf6 {[%emt 0:00:03]} 37. Qxf6+ {[%emt 0:00:01]} Kh6 {[%emt 0:00:09]} 38. Qh4+ {[%emt 0:00:01]} Qxh4 {[%emt 0:00:02]} 39. gxh4 {[%emt 0:00:03]} c4 {[%emt 0:00:05]} 40. Rxf7 {[%emt 0:00:02]} c3 {[%emt 0:00:02]} 41. Rc7 {[%emt 0:00:00]} c2 {[%emt 0:00:03]} 42. Kh3 {[%emt 0:00:02]} g5 {[%emt 0:00:08]} 43. Rc6+ {[%emt 0:00:00]} Kg7 {[%emt 0:00:01]} 44. hxg5 {[%emt 0:00:01]} Kf7 {[%emt 0:00:04]} 45. Kh4 {[%emt 0:00:01]} Ke7 {[%emt 0:00:02]} 46. Kh5 {[%emt 0:00:02]} Kf7 {[%emt 0:00:01]} 47. h4 {[%emt 0:00:02]} Kg7 {[%emt 0:00:01]} 48. Rc7+ {[%emt 0:00:01]} Kg8 {[%emt 0:00:02]} 49. Kh6 {[%emt 0:00:01]} Rh1 {[%emt 0:00:03]} 50. Rc8+ {[%emt 0:00:02]} Kf7 {[%emt 0:00:01]} 51. Rc7+ {[%emt 0:00:03]} Ke6 {[%emt 0:00:01]} 52. Rxc2 {[%emt 0:00:03]} Rxh4+ {[%emt 0:00:01]} 53. Kg7 {[%emt 0:00:01]} Kf5 {[%emt 0:00:02]} 54. Rg2 {[%emt 0:00:02]} Kf4 {[%emt 0:00:04]} 55. Kf6 {[%emt 0:00:04]} Rg4 {[%emt 0:00:03]} 56. Rf2+ {[%emt 0:00:02]} Kg3 {[%emt 0:00:01]} 57. Rf1 {[%emt 0:00:02]} Kh4 {[%emt 0:00:02]} 58. Rh1+ {[%emt 0:00:02]} Kg3 {[%emt 0:00:01]} 59. Rxh7 {[%emt 0:00:01]} Rf4+ {[%emt 0:00:02]} 60. Ke5 {[%emt 0:00:02]} Rg4 {[%emt 0:00:01]} 61. Kf5 {[%emt 0:00:02]} Rc4 {[%emt 0:00:01]} 62. Rd7 {[%emt 0:00:03]} Rc5+ {[%emt 0:00:01]} 63. Kg6 {[%emt 0:00:02]} Kg4 {[%emt 0:00:00]} 64. Rd4+ {[%emt 0:00:01]} Kf3 {[%emt 0:00:02]} 65. Kf6 {[%emt 0:00:03]} Rc6+ {[%emt 0:00:01]} 66. Kg7 {[%emt 0:00:01]} Ke3 {[%emt 0:00:01]} 67. Ra4 {[%emt 0:00:01]} Kf3 {[%emt 0:00:01]} 68. g6 {[%emt 0:00:01]} Rc7+ {[%emt 0:00:01]} 69. Kh6 {[%emt 0:00:01]} Rc6 {[%emt 0:00:00]} 70. Kh7 {[%emt 0:00:01]} Rc7+ {[%emt 0:00:01]} 71. g7 {[%emt 0:00:00]} Rc8 {[%emt 0:00:01]} 72. g8=Q {[%emt 0:00:04]} Rxg8 {[%emt 0:00:00]} 73. Kxg8 {[%emt 0:00:00]} Ke3 {[%emt 0:00:01]} 1-0

[Event "GER-chW Blitz 2019"]
[Site "Magdeburg"]
[Date "2019.05.25"]
[Round "9.3"]
[White "Silz, Elisa"]
[Black "Siegl, Melina"]
[Result "0-1"]
[ECO "A81"]
[WhiteElo "1977"]
[BlackElo "2029"]
[Annotator "NA"]
[PlyCount "94"]
[EventDate "2019.05.25"]
[EventType "tourn"]
[EventCountry "GER"]
[SourceTitle "playchess.com"]
[Source "ChessBase"]
[SourceQuality "1"]
[TimeControl "180+2"]

1. d4 {[%emt 0:00:00]} f5 {[%emt 0:00:05]} 2. g3 {[%emt 0:00:01]} d6 {[%emt 0:00:03]} 3. Bg2 {[%emt 0:00:01]} g6 {[%emt 0:00:01]} 4. Nh3 {[%emt 0:00:02]} Bg7 {[%emt 0:00:01]} 5. c4 {[%emt 0:00:01]} Nf6 {[%emt 0:00:02]} 6. O-O {[%emt 0:00:02]} c6 {[%emt 0:00:03]} 7. Nc3 {[%emt 0:00:02]} O-O {[%emt 0:00:02]} 8. d5 {[%emt 0:00:05]} e5 {[%emt 0:00:29]} 9. dxe6 Bxe6 {[%emt 0:00:05]} 10. Qb3 {[%emt 0:00:15]} Qc8 {[%emt 0:00:12]} 11. Nf4 {[%emt 0:00:03]} Bf7 {[%emt 0:00:02]} 12. Qb4 {[%emt 0:00:13]} Rd8 {[%emt 0:00:04]} 13. Be3 {[%emt 0:00:08]} Na6 {[%emt 0:00:02]} 14. Qa4 {[%emt 0:00:10]} g5 {[%emt 0:00:30]} 15. Nd3 {[%emt 0:00:04]} h6 {[%emt 0:00:03]} 16. Rac1 {[%emt 0:00:11]} Ng4 {[%emt 0:00:03]} 17. Bd2 {[%emt 0:00:05]} Ne5 {[%emt 0:00:04]} 18. Nxe5 {[%emt 0:00:06]} dxe5 {[%emt 0:00:01]} 19. b4 {[%emt 0:00:10]} Bxc4 {[%emt 0:00:08]} 20. Be3 {[%emt 0:00:16]} Bf7 {[%emt 0:00:32]} 21. b5 {[%emt 0:00:06]} Nb8 {[%emt 0:00:35]} 22. b6 {[%emt 0:00:13]} a5 {[%emt 0:00:08]} 23. f4 {[%emt 0:00:13]} exf4 {[%emt 0:00:08]} 24. gxf4 {[%emt 0:00:02]} Qe6 {[%emt 0:00:03]} 25. Nd1 {[%emt 0:00:15]} Rxd1 {[%emt 0:00:04]} 26. Rcxd1 {[%emt 0:00:05]} Qxe3+ {[%emt 0:00:01]} 27. Kh1 {[%emt 0:00:01]} Qxb6 {[%emt 0:00:02]} 28. Rf3 {[%emt 0:00:06]} g4 {[%emt 0:00:02]} 29. Rfd3 Na6 {[%emt 0:00:03]} 30. Qc2 {[%emt 0:00:07]} Re8 {[%emt 0:00:04]} 31. Rd7 {[%emt 0:00:04]} Be6 {[%emt 0:00:06]} 32. R7d6 {[%emt 0:00:05]} Bf8 {[%emt 0:00:02]} 33. Rxe6 {[%emt 0:00:06]} Rxe6 {[%emt 0:00:01]} 34. Qxf5 {[%emt 0:00:02]} Re7 {[%emt 0:00:04]} 35. Qg6+ {[%emt 0:00:05]} Rg7 {[%emt 0:00:01]} 36. Qe6+ {[%emt 0:00:02]} Kh7 {[%emt 0:00:02]} 37. Be4+ {[%emt 0:00:04]} Kh8 {[%emt 0:00:04]} 38. Qxh6+ {[%emt 0:00:02]} Kg8 {[%emt 0:00:01]} 39. Qe6+ {[%emt 0:00:09]} Kh8 {[%emt 0:00:01]} 40. Qe8 {[%emt 0:00:06]} Qc5 {[%emt 0:00:02]} 41. f5 {[%emt 0:00:09]} Qe7 42. Qh5+ {[%emt 0:00:02]} Kg8 {[%emt 0:00:03]} 43. Rf1 {[%emt 0:00:02]} Qxe4+ {[%emt 0:00:01]} 44. Kg1 {[%emt 0:00:02]} Bc5+ {[%emt 0:00:01]} 45. Rf2 {[%emt 0:00:02]} g3 {[%emt 0:00:05]} 46. hxg3 {[%emt 0:00:17]} Rxg3+ {[%emt 0:00:01]} 47. Kf1 {[%emt 0:00:01]} Qb1# 0-1